bitfinex/quotes_SOLUSD_20250722
["timestamp","ask_amount","ask_price","bid_price","bid_amount"]
[1753205984805,4.92950803,202.86,202.81,14.94773309]
[1753205985114,5.61950803,202.86,202.81,14.94773309]
[1753205985516,0.69,202.85,202.8,14.94773309]
[1753205985717,0.69,202.85,202.81,14.94773309]
[1753205986014,4.92950803,202.86,202.82,44.53773309]
[1753205986204,4.92877914,202.89,202.85,44.53773309]
[1753205986407,4.92877914,202.89,202.82,0.35]
[1753205986590,4.92877914,202.89,202.81,29.59]
[1753205986591,14.94773309,202.87,202.81,29.59]
[1753205986993,4.92950803,202.86,202.81,29.59]
[1753205987302,0.69,202.85,202.81,29.59]
[1753205987501,19.87724112,202.86,202.81,29.59]
[1753205987502,0.7,202.84,202.81,29.59]
[1753205988003,0.7,202.84,202.81,79.89]
[1753205988195,14.94773309,202.82,202.76,29.59]
[1753205988414,0.7,202.81,202.76,29.59]
[1753205988603,0.7,202.81,202.78,29.59]
[1753205988804,14.94773309,202.83,202.78,29.59]
[1753205989121,5.63048022,202.82,202.78,29.59]
[1753205989816,5.63048022,202.82,202.76,44.53773309]
[1753205990002,14.94773309,202.8,202.75,50.3]
[1753205990198,4.93048022,202.82,202.79,44.53773309]
[1753205990405,4.93048022,202.82,202.81,14.94773309]
[1753205990604,4.93048022,202.82,202.79,79.89]
[1753205990802,4.93048022,202.82,202.8,14.94773309]
[1753205991112,17.25430688,202.85,202.81,0.03]
[1753205991499,17.25430688,202.85,202.82,14.94773309]
[1753205991500,4.92975104,202.85,202.82,14.94773309]
[1753205991691,4.92975104,202.85,202.82,65.24773309]
[1753205991891,4.92975104,202.85,202.82,94.83773309]
[1753205992099,4.92902208,202.88,202.84,29.59]
[1753205992319,4.92902208,202.88,202.85,14.94773309]
[1753205992497,4.92902208,202.88,202.84,44.53773309]
[1753205993222,0.7,202.87,202.82,14.94773309]
[1753205993417,0.7,202.87,202.81,29.62]
[1753205993418,4.92902208,202.88,202.84,14.94773309]
[1753205993616,4.92902208,202.88,202.85,14.94773309]
[1753205993915,4.92902208,202.88,202.86,14.94773309]
[1753205994317,4.92902208,202.88,202.83,29.59]
[1753205994613,4.92902208,202.88,202.84,44.53773309]
[1753205994814,4.92902208,202.88,202.85,14.94773309]
[1753205995317,4.92877914,202.89,202.84,29.59]
[1753205995516,0.7,202.87,202.84,44.53773309]
[1753205995718,32.19846008,202.89,202.84,29.59]
[1753205995916,14.94773309,202.86,202.81,0.03]
[1753205996219,0.7,202.87,202.81,0.03]
[1753205996220,14.94773309,202.85,202.81,0.03]
[1753205996407,0.7,202.84,202.81,0.03]
[1753205997216,0.7,202.83,202.81,0.03]
[1753205997411,4.93048022,202.82,202.81,0.03]
[1753205997617,5.63048022,202.82,202.81,0.03]
[1753205997804,58.90441388,202.82,202.72,14.94773309]
[1753205998005,14.94773309,202.74,202.65,0.35]
[1753205998223,14.94773309,202.75,202.69,14.94773309]
[1753205998425,15.64773309,202.75,202.69,14.94773309]
[1753205998619,0.7,202.75,202.69,14.94773309]
[1753205998824,41.64773309,202.79,202.73,14.94773309]
[1753205998999,15.64773309,202.79,202.73,14.94773309]
[1753205999199,14.94773309,202.79,202.69,29.59]
[1753205999408,17.26093603,202.77,202.64,56.398]
[1753205999606,17.26093603,202.77,202.65,14.94773309]
[1753205999607,14.94773309,202.72,202.65,14.94773309]
[1753205999906,14.94773309,202.73,202.64,6.098]
[1753206000112,14.94773309,202.73,202.66,14.94773309]
[1753206000316,0.7,202.74,202.66,50.3]
[1753206000317,14.94773309,202.7,202.66,50.3]
[1753206000619,0.7,202.69,202.66,50.3]
[1753206000818,14.94773309,202.67,202.62,0.03]
[1753206001022,14.94773309,202.64,202.62,0.03]
[1753206001225,14.94773309,202.63,202.57,0.03]
[1753206001397,5.63534695,202.62,202.57,0.03]
[1753206001727,4.93388592,202.68,202.61,14.94773309]
[1753206002035,0.7,202.69,202.66,14.94773309]
[1753206002269,4.93315573,202.71,202.68,14.94773309]
[1753206002421,4.93266906,202.73,202.68,14.94773309]
[1753206002800,16.48323309,202.76,202.69,14.94773309]
[1753206003023,16.48323309,202.76,202.7,14.94773309]
[1753206003024,17.18323309,202.76,202.7,14.94773309]
[1753206003226,0.7,202.76,202.71,14.94773309]
[1753206003419,0.7,202.75,202.71,14.94773309]
[1753206003631,0.7,202.74,202.64,16.78468397]
[1753206003814,14.94773309,202.7,202.64,14.94773309]
[1753206004110,14.94773309,202.66,202.59,14.94773309]
[1753206004318,14.94773309,202.63,202.57,14.97773309]
[1753206004530,15.64773309,202.62,202.57,0.03]
[1753206004732,0.7,202.62,202.57,14.97773309]
[1753206005101,0.7,202.62,202.58,0.03]
[1753206005324,5.63566164,202.61,202.58,0.03]
[1753206006035,19.88259293,202.64,202.58,0.03]
[1753206006716,14.94773309,202.63,202.58,0.03]
[1753206006917,14.94773309,202.62,202.58,0.03]
[1753206007131,15.64773309,202.62,202.58,0.03]
[1753206007312,0.7,202.61,202.58,0.03]
[1753206007513,19.88281436,202.64,202.58,0.03]
[1753206007722,5.63508127,202.64,202.58,14.97773309]
[1753206008046,14.94773309,202.62,202.58,0.03]
[1753206008245,14.94773309,202.6,202.58,0.03]
[1753206008544,14.94773309,202.59,202.58,0.03]
[1753206008720,15.64773309,202.59,202.58,0.03]
[1753206009539,20.58381088,202.59,202.58,0.03]
[1753206009835,63.51065642,202.59,202.58,1e-08]
[1753206010040,26.0,202.56,202.53,0.03]
[1753206010413,4.93607779,202.59,202.53,0.03]
[1753206010613,0.7,202.56,202.53,0.03]
[1753206011545,4.93729633,202.54,202.53,0.03]
[1753206011837,32.4875,202.52,202.41,0.1]
[1753206012037,14.94773309,202.45,202.41,0.1]
[1753206012442,0.7,202.47,202.43,14.94773309]
[1753206012646,15.64773309,202.5,202.43,14.94773309]
[1753206012842,14.94773309,202.47,202.41,0.1]
[1753206013414,26.0,202.51,202.41,0.1]
[1753206013415,19.88698034,202.46,202.41,0.1]
[1753206013858,15.64773309,202.45,202.41,0.1]
[1753206014244,15.64773309,202.44,202.41,0.1]
[1753206014442,0.7,202.44,202.41,0.1]
[1753206014659,15.64773309,202.43,202.41,0.1]
[1753206014857,14.94773309,202.42,202.41,0.1]
[1753206015075,15.64773309,202.42,202.41,0.1]
[1753206015575,20.58795638,202.42,202.41,0.1]
[1753206015960,37.37264035,202.42,202.41,1e-08]
[1753206016161,5.64022329,202.42,202.41,1e-08]
[1753206016351,20.58795638,202.42,202.41,1e-08]
[1753206017655,14.94773309,202.48,202.41,14.9477331]
[1753206017854,14.94773309,202.45,202.41,1e-08]
[1753206018054,14.94773309,202.42,202.41,1e-08]
[1753206018467,15.66773309,202.42,202.41,1e-08]
[1753206019073,0.72,202.45,202.41,14.9477331]
[1753206019289,0.72,202.48,202.43,14.94773309]
[1753206019489,14.94773309,202.46,202.41,1e-08]
[1753206019656,4.93973523,202.44,202.41,1e-08]
[1753206020185,5.65973523,202.44,202.41,1e-08]
[1753206020355,15.66773309,202.47,202.41,14.9477331]
[1753206020549,5.6591298,202.47,202.42,14.94773309]
[1753206020751,0.72,202.51,202.46,14.94773309]
[1753206020991,5.65694038,202.56,202.47,0.48]
[1753206021184,14.94773309,202.53,202.46,14.94773309]
[1753206021482,14.94773309,202.52,202.46,14.94773309]
[1753206021664,4.93802775,202.51,202.43,0.48]
[1753206021866,15.66773309,202.5,202.43,14.94773309]
[1753206022070,15.66773309,202.5,202.44,14.94773309]
[1753206022281,4.93802775,202.51,202.45,14.94773309]
[1753206022473,4.93802775,202.51,202.46,14.94773309]
[1753206022678,20.60576084,202.51,202.45,14.94773309]
[1753206022881,19.88576084,202.51,202.45,14.94773309]
[1753206023059,14.94773309,202.49,202.42,14.94773309]
[1753206023258,26.0,202.54,202.42,14.94773309]
[1753206023259,4.93754011,202.53,202.47,14.94773309]
[1753206023467,4.93754011,202.53,202.49,14.94773309]
[1753206023669,4.93680884,202.56,202.51,14.94773309]
[1753206023961,4.93659458,202.57,202.53,14.94773309]
[1753206024164,13.94795716,202.61,202.55,14.94773309]
[1753206024165,16.55623309,202.61,202.55,14.94773309]
[1753206024364,12.33727651,202.64,202.49,6.5177]
[1753206024365,4.93510339,202.63,202.49,6.5177]
[1753206024596,4.93510339,202.63,202.59,14.94773309]
[1753206024894,4.93487701,202.64,202.6,14.94773309]
[1753206025191,5.65487701,202.64,202.6,14.94773309]
[1753206026670,1.5354,202.67,202.61,14.94773309]
[1753206026969,26.0,202.67,202.63,14.94773309]
[1753206027186,26.72,202.67,202.63,14.94773309]
[1753206027765,4.93461633,202.65,202.63,14.94773309]
[1753206028762,4.93461633,202.65,202.54,50.79372963]
[1753206028763,0.72,202.64,202.54,55.73083847]
[1753206028965,0.72,202.64,202.54,0.48]
[1753206029298,15.66773309,202.64,202.57,14.94773309]
[1753206029603,0.72,202.64,202.58,14.94773309]
[1753206029975,4.93510339,202.63,202.58,14.94773309]
[1753206030193,4.93510339,202.63,202.59,14.94773309]
[1753206030398,0.72,202.62,202.51,0.48]
[1753206030584,15.66773309,202.62,202.56,14.94773309]
[1753206030785,15.66773309,202.62,202.51,0.48]
[1753206031183,14.94773309,202.61,202.51,0.48]
[1753206031384,15.66773309,202.62,202.56,14.94773309]
[1753206031589,15.66773309,202.62,202.55,14.94773309]
[1753206031785,14.94773309,202.58,202.52,14.94773309]
[1753206031985,5.65656513,202.57,202.51,14.94773309]
[1753206032200,14.94773309,202.56,202.51,50.3]
[1753206032502,0.72,202.55,202.51,50.3]
[1753206032985,0.72,202.55,202.49,14.94773309]
[1753206032986,0.72,202.54,202.49,65.24773309]
[1753206033689,0.72,202.54,202.49,50.3]
[1753206034393,4.93656513,202.57,202.53,14.94773309]
[1753206034707,0.72,202.56,202.49,50.3]
[1753206035204,15.66773309,202.56,202.5,14.94773309]
[1753206035574,14.94773309,202.52,202.43,57.0157]
[1753206035793,0.72,202.51,202.44,14.94773309]
[1753206036004,41.66773309,202.54,202.48,14.94773309]
[1753206036181,26.72,202.54,202.49,14.94773309]
[1753206036381,26.72,202.54,202.47,14.94773309]
[1753206036382,5.65754011,202.53,202.47,14.94773309]
[1753206036697,5.65754011,202.53,202.48,14.94773309]
[1753206036904,14.94773309,202.54,202.48,50.3]
[1753206037074,0.06,202.56,202.53,14.94773309]
[1753206037075,4.93719262,202.55,202.53,14.94773309]
[1753206037284,26.06,202.56,202.53,14.94773309]
[1753206037285,4.99684471,202.56,202.53,14.94773309]
[1753206037476,0.06,202.56,202.54,14.94773309]
[1753206037705,14.94773309,202.55,202.49,50.78]
[1753206038003,31.71683464,202.56,202.49,50.3]
[1753206038004,14.94773309,202.54,202.49,50.3]
[1753206038180,0.72,202.54,202.49,50.3]
[1753206038374,4.93754011,202.53,202.49,50.3]
[1753206038571,4.93754011,202.53,202.49,65.24773309]
[1753206038990,4.93723407,202.55,202.5,14.94773309]
[1753206039185,5.65723407,202.55,202.49,65.24773309]
[1753206039481,19.88496716,202.55,202.49,65.24773309]
[1753206039689,4.93723407,202.55,202.49,65.24773309]
[1753206040005,32.2275986,202.55,202.49,50.3]
[1753206040193,14.94773309,202.53,202.43,50.3]
[1753206040382,4.93851548,202.49,202.44,14.94773309]
[1753206040779,4.93851548,202.49,202.44,65.24773309]
[1753206040976,14.94773309,202.48,202.41,1e-08]
[1753206041206,15.66773309,202.48,202.42,14.94773309]
[1753206041390,10.55464112,202.48,202.42,9.83464112]
[1753206041591,9.83464112,202.47,202.41,60.13464113]
[1753206041791,9.83464112,202.47,202.41,9.83464113]
[1753206041991,9.83464112,202.47,202.41,1e-08]
[1753206042228,14.77388837,202.46,202.41,1e-08]
[1753206042507,9.83464112,202.45,202.41,1e-08]
[1753206042708,15.49388837,202.46,202.41,1e-08]
[1753206043081,0.72,202.45,202.41,1e-08]
[1753206044191,10.55464112,202.44,202.41,1e-08]
[1753206044882,4.93851548,202.49,202.43,9.83464112]
[1753206045085,4.93851548,202.49,202.44,9.83464112]
[1753206045416,4.93851548,202.49,202.41,9.83464113]
[1753206045417,10.55464112,202.48,202.41,9.83464113]
[1753206045582,9.83464112,202.48,202.41,9.83464113]
[1753206045788,27.1194453,202.49,202.43,9.83464112]
[1753206046112,5.6582332,202.51,202.45,9.83464112]
[1753206046311,4.93729633,202.54,202.5,9.83464112]
[1753206046481,0.06,202.56,202.53,9.83464112]
[1753206046681,0.06,202.56,202.54,9.83464112]
[1753206046904,0.06,202.56,202.55,9.83464112]
[1753206047209,0.06,202.56,202.54,9.83464112]
[1753206047402,0.06,202.56,202.5,30.07]
[1753206047604,4.99680884,202.56,202.5,9.83464112]
[1753206047910,4.99680884,202.56,202.51,9.83464112]
[1753206048205,0.06,202.56,202.52,9.83464112]
[1753206048406,0.06,202.56,202.49,29.59]
[1753206048611,0.06,202.56,202.52,9.83464112]
[1753206049179,0.06,202.56,202.52,14.82531824]
[1753206049380,0.06,202.56,202.55,44.41531824]
[1753206049608,0.06,202.56,202.55,61.20000221]
[1753206049784,0.06,202.56,202.55,44.41531824]
[1753206049983,0.06,202.56,202.53,0.48]
[1753206050185,0.06,202.56,202.52,14.82531824]
[1753206050602,0.06,202.56,202.53,14.82531824]
[1753206050905,0.06,202.56,202.48,0.14216157]
[1753206051119,0.06,202.56,202.54,14.82531824]
[1753206051812,0.06,202.56,202.51,0.48]
[1753206051991,0.06,202.56,202.54,14.82531824]
[1753206052194,0.06,202.56,202.48,29.59]
[1753206052392,0.06,202.56,202.52,14.82531824]
[1753206052903,0.06,202.56,202.51,14.82531824]
[1753206053217,14.88531824,202.56,202.51,50.3]
[1753206053516,14.82531824,202.53,202.42,52.4127]
[1753206053809,4.93778392,202.52,202.47,14.82531824]
[1753206054107,5.64778392,202.52,202.46,14.82531824]
[1753206054503,14.82531824,202.51,202.45,14.82531824]
[1753206055014,14.82531824,202.51,202.44,14.82531824]
[1753206055210,14.82531824,202.5,202.44,14.82531824]
[1753206055391,14.82531824,202.5,202.43,14.82531824]
[1753206055392,14.82531824,202.49,202.43,14.82531824]
[1753206055592,0.71,202.48,202.42,14.82531824]
[1753206055795,4.9390033,202.47,202.42,14.82531824]
[1753206056311,15.53531824,202.46,202.41,1e-08]
[1753206056486,14.82531824,202.43,202.41,1e-08]
[1753206056922,0.71,202.42,202.41,1e-08]
[1753206057392,14.82531824,202.46,202.41,14.82531825]
[1753206057589,15.53531824,202.45,202.41,1e-08]
[1753206057914,19.76505347,202.44,202.41,1e-08]
[1753206058082,14.82531824,202.42,202.41,1e-08]
[1753206058286,40.82531824,202.42,202.41,1e-08]
[1753206058518,41.53531824,202.42,202.41,1e-08]
[1753206058705,40.82531824,202.42,202.41,1e-08]
[1753206058891,41.53531824,202.42,202.41,1e-08]
[1753206059610,32.46216378,202.42,202.41,1e-08]
[1753206059811,21.86804526,202.38,202.36,0.03]
[1753206060127,14.82531824,202.37,202.36,0.03]
[1753206060414,0.71,202.41,202.36,14.85531824]
[1753206060619,0.71,202.44,202.36,0.03]
[1753206060913,0.71,202.48,202.43,14.82531824]
[1753206061085,31.64922359,202.47,202.36,79.92]
[1753206061289,14.82531824,202.44,202.38,14.82531824]
[1753206061489,14.82531824,202.43,202.37,14.82531824]
[1753206061717,26.0,202.42,202.36,0.03]
[1753206062016,4.94119972,202.38,202.36,0.03]
[1753206062398,19.76627159,202.4,202.36,0.03]
[1753206062604,4.94041584,202.42,202.37,14.82531824]
[1753206062826,15.53531824,202.48,202.41,14.82531824]
[1753206063115,41.53531824,202.48,202.42,14.82531824]
[1753206063322,26.71,202.48,202.43,14.82531824]
[1753206063505,0.71,202.47,202.43,14.82531824]
[1753206063699,4.93851548,202.49,202.44,14.82531824]
[1753206063908,0.71,202.48,202.44,14.82531824]
[1753206064294,0.71,202.48,202.39,5.42081065]
[1753206064295,4.93851548,202.49,202.45,14.82531824]
[1753206064618,4.93851548,202.49,202.4,0.48]
[1753206064927,30.93851548,202.49,202.46,14.82531824]
[1753206065315,4.93818589,202.51,202.48,14.82531824]
[1753206065517,0.71,202.5,202.39,5.42095558]
[1753206065699,26.0,202.48,202.42,14.82531824]
[1753206065898,4.9390033,202.47,202.42,14.82531824]
[1753206066125,5.6490033,202.47,202.42,14.82531824]
[1753206066337,5.6490033,202.47,202.43,14.82531824]
[1753206066632,5.6490033,202.47,202.44,14.82531824]
[1753206067131,4.9390033,202.47,202.44,14.82531824]
[1753206067624,15.53531824,202.46,202.4,14.82531824]
[1753206067830,14.82531824,202.45,202.39,14.82531824]
[1753206068006,4.93973523,202.44,202.39,65.12531824]
[1753206068199,5.64973523,202.44,202.39,65.12531824]
[1753206068534,14.82531824,202.42,202.36,65.15531824]
[1753206068733,15.53531824,202.43,202.37,14.82531824]
[1753206069231,4.93973523,202.44,202.4,14.82531824]
[1753206069528,4.93973523,202.44,202.41,14.82531824]
[1753206070100,0.71,202.43,202.39,14.82531824]
[1753206070396,4.93973523,202.44,202.41,14.82531824]
[1753206070799,0.71,202.43,202.39,14.82531824]
[1753206071345,4.93973523,202.44,202.4,9.83760762]
[1753206072032,4.93973523,202.44,202.41,9.83760762]
[1753206072342,30.93949385,202.45,202.41,9.83760762]
[1753206072506,30.93949385,202.45,202.43,9.83760762]
[1753206072900,4.93851548,202.49,202.44,10.31760762]
[1753206073129,4.93851548,202.49,202.48,9.83760762]
[1753206073130,0.06,202.49,202.48,9.83760762]
[1753206073331,0.06,202.49,202.44,0.48]
[1753206073332,35.89760762,202.49,202.44,0.48]
[1753206073542,26.06,202.49,202.43,50.3]
[1753206073722,26.06,202.49,202.46,9.83760762]
[1753206074140,0.06,202.49,202.47,9.83760762]
[1753206074819,10.54760762,202.48,202.43,50.3]
[1753206075015,9.83760762,202.44,202.41,50.3]
[1753206075224,0.06,202.49,202.41,50.3]
[1753206075225,10.54760762,202.43,202.41,50.3]
[1753206075426,10.54760762,202.42,202.41,50.3]
[1753206075631,9.83760762,202.43,202.37,9.83760762]
[1753206076040,35.83760762,202.44,202.37,9.83760762]
[1753206076417,4.93997925,202.43,202.36,50.33]
[1753206076617,9.83760762,202.42,202.36,0.03]
[1753206076816,9.83760762,202.42,202.36,9.86760762]
[1753206077018,10.54760762,202.41,202.36,0.03]
[1753206077318,26.0,202.4,202.36,0.03]
[1753206077528,26.66,202.4,202.36,0.03]
[1753206077817,9.83760762,202.37,202.36,0.03]
[1753206078021,26.0,202.38,202.36,0.03]
[1753206078325,26.0,202.37,202.36,0.03]
[1753206078521,4.94144388,202.37,202.36,0.03]
[1753206079031,26.66,202.41,202.36,0.03]
[1753206079232,4.94075819,202.4,202.36,0.03]
[1753206079542,35.83760762,202.37,202.36,0.03]
[1753206079924,36.49760762,202.37,202.36,0.03]
[1753206080333,36.49760762,202.37,202.34,0.03]
[1753206080334,35.83760762,202.35,202.34,0.03]
[1753206080528,57.70638545,202.35,202.34,1e-08]
[1753206080719,14.77953991,202.35,202.34,1e-08]
[1753206081123,15.43953991,202.35,202.34,1e-08]
[1753206081847,32.36638545,202.35,202.34,1e-08]
[1753206082756,15.43953991,202.35,202.34,1e-08]
[1753206083536,15.58170148,202.35,202.33,1e-08]
[1753206083737,36.49760762,202.34,202.31,1e-08]
[1753206083933,35.83760762,202.32,202.31,1e-08]
[1753206084429,36.49760762,202.32,202.31,1e-08]
[1753206084624,42.78468397,202.28,202.27,1e-08]
[1753206084823,52.76445316,202.28,202.27,1e-08]
[1753206085055,16.92684554,202.27,202.24,0.03]
[1753206085355,16.92684554,202.24,202.18,0.1]
[1753206085556,35.83760762,202.21,202.18,0.1]
[1753206085721,9.83760762,202.22,202.18,0.1]
[1753206085917,26.0,202.22,202.18,0.1]
[1753206086148,10.49760762,202.21,202.18,0.1]
[1753206086526,15.44296146,202.21,202.18,0.1]
[1753206086749,4.94535384,202.21,202.18,0.1]
[1753206086938,0.66,202.25,202.2,9.93760762]
[1753206087141,0.66,202.28,202.22,9.83760762]
[1753206087338,9.83760762,202.28,202.21,0.48]
[1753206087541,14.78100571,202.29,202.23,9.83760762]
[1753206087823,26.0,202.27,202.22,9.83760762]
[1753206088023,4.94318997,202.3,202.25,9.83760762]
[1753206088223,4.94318997,202.3,202.25,10.31760762]
[1753206088444,14.78079759,202.3,202.24,9.83760762]
[1753206088663,9.83760762,202.26,202.2,0.1]
[1753206088854,9.83760762,202.25,202.2,0.1]
[1753206089236,14.872437,202.26,202.2,0.1]
[1753206089440,14.872437,202.25,202.2,0.1]
[1753206089671,14.872437,202.24,202.2,0.1]
[1753206089846,14.872437,202.21,202.2,0.1]
[1753206090372,26.0,202.25,202.2,0.1]
[1753206090538,4.94486475,202.23,202.2,0.1]
[1753206090732,26.0,202.25,202.2,14.972437]
[1753206090942,4.94462611,202.24,202.2,0.1]
[1753206091247,14.872437,202.27,202.21,14.872437]
[1753206091560,4.94364247,202.28,202.24,14.872437]
[1753206091744,4.94290939,202.31,202.27,14.872437]
[1753206092141,4.94290939,202.31,202.24,0.48]
[1753206092399,4.94290939,202.31,202.26,14.872437]
[1753206092740,5.60290939,202.31,202.26,14.872437]
[1753206093245,4.94290939,202.31,202.26,14.872437]
[1753206093444,4.94290939,202.31,202.27,14.872437]
[1753206093654,4.94290939,202.31,202.26,65.172437]
[1753206094563,4.94290939,202.31,202.26,50.3]
[1753206094767,4.94339809,202.29,202.26,50.3]
[1753206094937,5.60339809,202.29,202.26,50.3]
[1753206095142,15.532437,202.28,202.26,50.3]
[1753206095868,0.66,202.28,202.26,50.3]
[1753206096078,0.66,202.27,202.26,50.3]
[1753206096584,19.81583509,202.29,202.26,50.3]
[1753206096790,0.66,202.28,202.26,50.3]
[1753206096951,41.532437,202.28,202.26,50.3]
[1753206097278,15.532437,202.27,202.21,0.03]
[1753206097475,14.872437,202.23,202.21,0.03]
[1753206097968,26.0,202.26,202.22,14.872437]
[1753206098147,14.872437,202.27,202.22,14.872437]
[1753206098350,26.66,202.26,202.21,0.03]
[1753206098888,19.81730175,202.23,202.21,0.03]
[1753206099064,14.872437,202.22,202.21,0.03]
[1753206099258,15.532437,202.22,202.21,0.03]
[1753206099567,0.66,202.22,202.21,0.03]
[1753206100366,4.94486475,202.23,202.21,0.03]
[1753206100759,4.94462025,202.24,202.21,0.03]
[1753206101582,4.94413131,202.26,202.22,14.872437]
[1753206101888,4.94413131,202.26,202.21,0.03]
[1753206101889,4.9436516,202.28,202.25,14.872437]
[1753206102086,4.9436516,202.28,202.26,14.872437]
[1753206102475,4.94315373,202.3,202.26,14.872437]
[1753206102681,26.0,202.31,202.23,0.48]
[1753206102682,4.94291966,202.31,202.28,14.872437]
[1753206102980,4.94242079,202.33,202.28,14.872437]
[1753206103179,14.872437,202.29,202.23,50.3]
[1753206103379,14.872437,202.28,202.21,65.202437]
[1753206103584,14.872437,202.25,202.21,0.03]
[1753206103785,14.872437,202.23,202.21,0.03]
[1753206104663,15.532437,202.22,202.21,0.03]
[1753206104865,20.47754628,202.22,202.21,0.03]
[1753206106162,5.60510928,202.22,202.21,0.03]
[1753206106468,42.92684554,202.21,202.2,0.1]
[1753206106656,58.45928254,202.21,202.2,1e-08]
[1753206107081,42.92684554,202.19,202.18,1e-08]
[1753206107285,26.0,202.18,202.17,1e-08]
[1753206107481,41.592437,202.18,202.17,1e-08]
[1753206107672,16.92684554,202.17,202.15,1e-08]
[1753206107984,14.872437,202.16,202.15,1e-08]
[1753206108292,4.94731113,202.13,202.12,0.1]
[1753206108481,21.87415667,202.13,202.12,1e-08]
[1753206108784,22.59415667,202.13,202.12,1e-08]
[1753206109687,26.0,202.09,202.04,0.03]
[1753206109899,16.92684554,202.08,202.04,0.03]
[1753206110066,43.64684554,202.08,202.04,0.03]
[1753206110269,19.82170698,202.05,202.04,0.03]
[1753206110779,37.46855252,202.05,202.04,1e-08]
[1753206111195,22.59611552,202.05,202.04,1e-08]
[1753206111398,32.47508353,202.05,202.04,1e-08]
[1753206111989,5.66926998,202.05,202.04,1e-08]
[1753206112190,4.94896323,202.07,202.04,1e-08]
[1753206112501,9.87896801,202.05,202.04,1e-08]
[1753206112706,26.72,202.05,202.04,1e-08]
[1753206112897,53.52581355,202.05,202.04,1e-08]
[1753206113098,26.72,202.05,202.04,1e-08]
[1753206113478,36.59896801,202.05,202.04,1e-08]
[1753206114305,30.94926998,202.05,202.04,1e-08]
[1753206114507,30.94878012,202.07,202.04,1e-08]
[1753206114685,40.82774813,202.07,202.04,1e-08]
[1753206114883,10.59896801,202.06,202.04,1e-08]
[1753206115089,26.0,202.05,202.04,1e-08]
[1753206115395,36.59896801,202.05,202.04,1e-08]
[1753206115589,16.92684554,202.04,201.92,0.48]
[1753206115792,9.87896801,202.0,201.94,9.87896801]
[1753206116007,9.87896801,202.01,201.95,9.87896801]
[1753206116186,0.72,202.04,201.97,9.87896801]
[1753206116187,10.02112958,202.03,201.97,9.87896801]
[1753206116510,4.95024998,202.01,201.97,9.87896801]
[1753206116711,4.95024998,202.01,201.96,9.87896801]
[1753206116909,14.82896702,202.03,201.97,9.87896801]
[1753206117486,4.94999901,202.03,201.98,9.87896801]
[1753206117698,4.94999901,202.03,201.95,0.03]
[1753206117915,14.82896702,202.03,201.97,9.87896801]
[1753206118215,4.94999901,202.03,201.97,9.87896801]
[1753206118597,4.94999901,202.03,201.95,0.03]
[1753206118598,9.87896801,202.01,201.95,0.03]
[1753206118798,9.87896801,201.99,201.95,0.03]
[1753206119188,10.59896801,201.99,201.95,0.03]
[1753206119711,26.0,202.0,201.96,9.87896801]
[1753206119891,26.0,202.0,201.95,0.03]
[1753206120094,22.59684455,202.03,201.97,9.87896801]
[1753206120408,4.9478007,202.11,202.02,9.87896801]
[1753206120713,4.9478007,202.11,202.08,9.87896801]
[1753206120898,4.9478007,202.11,202.03,0.48]
[1753206121096,4.9478007,202.11,202.08,9.87896801]
[1753206121411,4.9478007,202.11,202.03,0.48]
[1753206121583,35.87896801,202.08,202.02,9.87896801]
[1753206121784,9.87896801,202.07,202.01,9.87896801]
[1753206121990,36.59896801,202.08,202.02,9.87896801]
[1753206122218,26.80581355,202.07,201.96,52.3117]
[1753206122459,26.80581355,202.07,201.95,6.4139]
[1753206122460,14.82897296,202.02,201.95,9.90896801]
[1753206122594,9.87896801,202.01,201.95,9.90896801]
[1753206123318,5.67000495,202.02,201.98,9.87896801]
[1753206123523,4.95000495,202.02,201.98,9.87896801]
[1753206123731,14.82897296,202.02,201.95,0.03]
[1753206123916,0.72,202.01,201.96,9.87896801]
[1753206124213,9.87896801,202.11,202.0,9.87896801]